bitfinex-derivatives/quotes_ETHF0:USTF0_20260226
["timestamp","ask_amount","ask_price","bid_price","bid_amount"]
[1772097563397,19.90956171,2067.1,2066.9,0.54702434]
[1772097563698,19.90956171,2067.1,2066.8,8.005]
[1772097563898,19.90956171,2067.1,2066.9,0.54723162]
[1772097564093,19.90956171,2067.1,2066.8,8.005]
[1772097564294,19.90956171,2067.1,2066.9,0.54723189]
[1772097564589,19.90956171,2067.1,2066.8,8.005]
[1772097564796,19.90956171,2067.1,2066.9,0.5472147]
[1772097564997,19.90956171,2067.1,2066.8,8.005]
[1772097565196,19.90956171,2067.1,2066.9,0.5473231]
[1772097565398,19.90956171,2067.1,2066.8,8.005]
[1772097565594,19.90956171,2067.1,2066.9,0.54730733]
[1772097565795,19.90956171,2067.1,2066.8,8.005]
[1772097567299,19.90956171,2067.1,2066.9,0.54740069]
[1772097567600,19.90956171,2067.1,2066.8,27.3592464]
[1772097567800,19.90956171,2067.1,2066.9,0.54741941]
[1772097568000,19.90956171,2067.1,2066.8,27.3592464]
[1772097568299,19.90956171,2067.1,2066.9,0.54746987]
[1772097568499,19.90956171,2067.1,2066.8,8.005]
[1772097568795,19.90956171,2067.1,2066.9,0.54745905]
[1772097568998,19.90956171,2067.1,2066.8,8.005]
[1772097569199,19.90956171,2067.1,2066.9,0.54745976]
[1772097569399,19.90956171,2067.1,2066.8,27.3592464]
[1772097569598,19.90956171,2067.1,2066.9,0.54745247]
[1772097569800,19.90956171,2067.1,2066.8,27.3592464]
[1772097570003,19.90956171,2067.1,2066.9,0.54745253]
[1772097570198,19.90956171,2067.1,2066.8,27.3592464]
[1772097570399,19.90956171,2067.1,2066.9,0.54745701]
[1772097570596,19.90956171,2067.1,2066.8,7.103]
[1772097571300,19.90956171,2067.1,2066.9,0.54758248]
[1772097571495,18.47741409,2067.4,2067.0,19.90170473]
[1772097571701,18.47741409,2067.5,2067.1,0.5473719]
[1772097571901,18.47741409,2067.5,2067.1,27.4472464]
[1772097572501,18.47741409,2067.5,2067.2,19.3542464]
[1772097572694,31.74557333,2067.6,2067.2,19.3542464]
[1772097572895,6.24636317,2067.5,2067.2,19.3542464]
[1772097573102,31.74557333,2067.6,2067.2,19.3542464]
[1772097573303,18.47741409,2067.8,2067.3,28.00453794]
[1772097573504,18.47741409,2067.8,2067.4,8.65229154]
[1772097573700,59.27741409,2067.8,2067.4,27.4622464]
[1772097573901,18.47741409,2067.7,2067.4,27.4622464]
[1772097574305,18.4827684,2067.7,2067.4,0.00538865]
[1772097574604,18.4827684,2067.7,2067.4,19.35963505]
[1772097575099,18.47741409,2067.9,2067.6,19.3542464]
[1772097575304,18.47741409,2068.0,2067.6,19.3542464]
[1772097575504,31.85041409,2068.2,2067.8,19.3542464]
[1772097575701,60.06239865,2068.1,2067.7,26.23942049]
[1772097576109,19.26239865,2068.0,2067.7,26.23942049]
[1772097576404,19.26239865,2068.0,2067.5,26.24742049]
[1772097576707,19.26239865,2067.8,2067.4,18.10529559]
[1772097576902,19.26239865,2067.8,2067.5,18.10942049]
[1772097577299,19.26239865,2067.8,2066.5,18.10942049]
[1772097577504,19.26239865,2067.8,2066.7,18.10942049]
[1772097577505,19.26239865,2067.6,2066.7,18.10942049]
[1772097577706,19.26239865,2067.4,2066.8,8.69269448]
[1772097577999,19.26239865,2067.4,2066.9,18.65311497]
[1772097578200,32.69039865,2067.4,2067.0,18.6533808]
[1772097578402,19.26239865,2067.3,2066.9,18.10942049]
[1772097578606,19.26239865,2067.3,2067.0,0.54397179]
[1772097578805,19.26239865,2067.3,2066.7,26.27195929]
[1772097579006,19.26239865,2067.3,2066.8,0.54417768]
[1772097579200,19.26239865,2067.3,2066.9,0.54417768]
[1772097579404,19.26239865,2067.3,2066.7,26.27195929]
[1772097579705,19.26239865,2067.3,2066.8,0.54366782]
[1772097579901,19.26239865,2067.3,2066.9,0.54366782]
[1772097580101,19.26239865,2067.3,2066.7,26.27195929]
[1772097580306,19.26239865,2067.3,2066.8,0.54363924]
[1772097580506,19.26239865,2067.3,2066.9,0.54363924]
[1772097580705,19.26239865,2067.3,2066.7,26.27195929]
[1772097580905,19.26239865,2067.3,2066.8,0.54364032]
[1772097581106,19.26239865,2067.3,2066.9,0.54364032]
[1772097581308,19.26239865,2067.3,2066.7,26.27195929]
[1772097581508,19.26239865,2067.3,2066.8,18.65305463]
[1772097581707,19.26239865,2067.3,2066.9,0.54363414]
[1772097581903,19.26239865,2067.3,2066.7,8.1625388]
[1772097582406,19.26239865,2067.1,2066.7,8.1625388]
[1772097582803,19.26239865,2067.1,2066.8,18.10942049]
[1772097584507,19.26239865,2067.5,2066.8,18.10942049]
[1772097584708,32.75939865,2067.4,2067.0,18.10942049]
[1772097584914,32.76139865,2067.4,2067.0,18.10942049]
[1772097585208,19.26239865,2067.4,2067.0,18.10942049]
[1772097585515,32.76639865,2067.4,2067.0,18.10942049]
[1772097587218,6.11918263,2067.3,2067.0,18.10942049]
[1772097587417,32.76639865,2067.4,2067.0,18.10942049]
[1772097587618,6.11918263,2067.3,2067.0,18.10942049]
[1772097587818,32.76639865,2067.4,2067.0,18.10942049]
[1772097588014,6.11918308,2067.3,2067.0,18.10942049]
[1772097588319,32.76639865,2067.4,2067.0,18.10942049]
[1772097588618,6.12025074,2067.3,2067.0,18.10942049]
[1772097588917,32.81339865,2067.5,2067.0,18.10942049]
[1772097589117,6.12010584,2067.4,2067.0,18.10942049]
[1772097589417,6.12054184,2067.3,2067.0,18.10942049]
[1772097589617,32.82639865,2067.5,2067.0,18.10942049]
[1772097589918,6.12053933,2067.4,2067.1,8.255]
[1772097590120,32.83539865,2067.5,2067.1,26.36442049]
[1772097590121,6.1210446,2067.3,2067.1,26.36442049]
[1772097590418,32.84539865,2067.5,2067.1,26.36442049]
[1772097590610,6.12104393,2067.4,2067.1,26.36442049]
[1772097590813,6.12104393,2067.3,2067.1,26.36442049]
[1772097591412,6.12104393,2067.3,2067.2,18.10942049]
[1772097591615,6.12104393,2067.4,2067.2,18.10942049]
[1772097591811,6.12104393,2067.3,2067.1,26.36442049]
[1772097592012,6.12104393,2067.2,2067.1,26.36442049]
[1772097592212,25.38344258,2067.2,2067.1,8.06005882]
[1772097593013,25.38344258,2067.2,2067.1,6.16986417]
[1772097593825,25.38344258,2067.2,2067.1,6.71179477]
[1772097595021,19.26239865,2067.1,2066.8,20.41642049]
[1772097595223,6.12104393,2067.0,2066.8,18.10942049]
[1772097595722,19.26239865,2067.2,2066.8,18.10942049]
[1772097596023,6.79017994,2067.1,2066.8,18.10942049]
[1772097596225,36.08056539,2067.3,2066.8,18.10942049]
[1772097596426,6.79032272,2067.2,2066.8,18.10942049]
[1772097596626,2.58840835,2067.1,2066.8,18.10942049]
[1772097596825,32.08180985,2067.3,2066.8,18.10942049]
[1772097597023,32.08180985,2067.3,2066.9,8.321]
[1772097597230,32.08180985,2067.3,2067.0,17.42960258]
[1772097598630,36.10956539,2067.3,2067.0,17.42960258]
[1772097600337,32.08180985,2067.3,2067.0,17.42960258]
[1772097600538,18.37080985,2067.3,2067.0,17.42960258]
[1772097600738,36.18056539,2067.4,2067.0,17.42960258]
[1772097601839,22.39856539,2067.4,2067.0,17.42960258]
[1772097604738,22.39856539,2067.4,2066.9,17.42960258]
[1772097605138,18.37080985,2067.2,2066.8,17.42960258]
[1772097605544,17.89275554,2067.3,2066.8,17.42960258]
[1772097605745,18.37080985,2067.2,2066.8,17.42960258]
[1772097606337,18.37080985,2067.2,2066.7,25.82714138]
[1772097606536,22.39856539,2067.2,2066.7,0.0045388]
[1772097606737,18.37080985,2067.0,2066.6,8.405]
[1772097606945,18.37080985,2067.0,2066.6,25.83460258]
[1772097607141,18.37080985,2067.0,2066.7,0.53593395]
[1772097607341,18.37080985,2067.0,2066.6,25.84060258]
[1772097607635,18.37080985,2067.0,2066.6,25.84441508]
[1772097607942,4.02775554,2067.0,2066.7,17.42960258]
[1772097608244,24.41766813,2067.3,2066.9,17.42960258]
[1772097608442,24.41766813,2067.3,2065.5,1.76989306]
[1772097608443,18.37080985,2066.9,2065.8,17.42960258]
[1772097608645,26.91674218,2066.8,2066.0,17.42960258]
[1772097608944,6.90994833,2066.7,2066.0,17.42960258]
[1772097609136,40.8,2066.9,2066.0,17.42960258]
[1772097609342,6.66001125,2066.8,2066.2,17.42960258]
[1772097609536,38.3776037,2067.0,2066.4,17.42960258]
[1772097609745,24.4626037,2066.9,2066.5,25.85660258]
[1772097609944,18.37080985,2066.9,2066.5,25.85660258]
[1772097611048,18.37080985,2066.9,2066.6,17.42960258]
[1772097612054,18.37080985,2066.9,2066.5,8.427]
[1772097612239,18.37080985,2066.9,2066.5,25.85660258]
[1772097612546,18.37080985,2066.9,2066.6,17.42960258]
[1772097612738,18.37080985,2066.9,2066.5,25.85660258]
[1772097612942,18.37080985,2066.9,2066.5,8.427]
[1772097613745,18.37080985,2066.7,2066.2,0.00584903]
[1772097613945,18.37080985,2066.6,2066.2,8.47084903]
[1772097614145,18.37503905,2066.6,2066.2,8.47084903]
[1772097614447,18.37503905,2066.6,2066.2,25.89860258]
[1772097614639,18.37080985,2066.8,2066.3,17.42960258]
[1772097614845,18.37080985,2066.8,2066.2,8.469]
[1772097614846,18.37080985,2067.0,2066.5,17.42960258]
[1772097615043,18.37080985,2067.0,2066.7,17.42960258]
[1772097615243,32.46380985,2067.3,2066.9,17.42960258]
[1772097615444,18.37080985,2067.2,2066.9,17.42960258]
[1772097615639,18.37560483,2067.2,2066.8,25.90560258]
[1772097615844,18.37560483,2067.2,2066.9,0.0048737]
[1772097617551,18.37080985,2067.4,2067.0,25.92660258]
[1772097617953,32.54080985,2067.5,2067.1,17.42960258]
[1772097618150,18.37080985,2067.5,2067.1,17.42960258]
[1772097618347,18.37080985,2067.5,2067.2,25.93360258]
[1772097618552,18.37502877,2067.5,2067.2,25.93360258]
[1772097619648,16.48483406,2067.5,2067.2,25.93360258]
[1772097620048,16.48483406,2067.5,2067.2,8.1435268]
[1772097620453,16.48483406,2067.5,2067.1,25.95160258]
[1772097620653,16.48483406,2067.5,2067.2,0.50257871]
[1772097620854,16.48483406,2067.5,2067.1,25.95160258]
[1772097621054,16.48483406,2067.5,2067.2,0.50273511]
[1772097621255,24.71878828,2067.4,2067.1,25.95160258]
[1772097621459,18.37502877,2067.5,2067.2,17.93237468]
[1772097621658,6.34782791,2067.4,2067.1,25.95160258]
[1772097621855,18.37502877,2067.5,2067.2,0.5027987]
[1772097622056,24.71863751,2067.4,2067.1,25.95160258]
[1772097622254,18.37080985,2067.4,2067.2,0.50292346]
[1772097622559,18.37080985,2067.4,2067.1,8.28180979]
[1772097623147,24.71823998,2067.3,2066.9,0.0048737]
[1772097623457,18.37080985,2067.1,2066.7,8.545]
[1772097624454,18.37080985,2067.1,2066.7,8.55071429]
[1772097624656,18.37080985,2067.1,2066.7,25.98031687]
[1772097625654,32.65680985,2067.2,2066.8,17.42960258]
[1772097625854,14.321,2067.2,2066.8,17.42960258]
[1772097626049,16.47921476,2067.3,2066.9,8.566]
[1772097626257,6.34814221,2067.2,2067.0,16.90999423]
[1772097626460,16.47921476,2067.2,2066.9,25.47599423]
[1772097627954,14.351,2067.4,2066.9,8.566]
[1772097628156,30.83321476,2067.7,2067.0,16.90999423]
[1772097628355,6.34566605,2067.6,2067.2,16.90999423]
[1772097628555,6.34566605,2067.5,2067.2,16.90999423]
[1772097628756,16.47921476,2067.8,2067.4,16.90999423]
[1772097629058,30.84021476,2067.8,2067.4,16.90999423]
[1772097629261,16.48529358,2067.8,2067.4,16.90999423]
[1772097629457,16.47921476,2067.7,2067.4,16.90999423]
[1772097634766,16.48529358,2067.8,2067.4,16.90999423]
[1772097634968,16.48529358,2067.8,2067.5,25.54599423]
[1772097635171,0.00607882,2067.8,2067.6,16.90999423]
[1772097635666,16.65201469,2067.8,2067.5,24.54382713]
[1772097636970,16.65201469,2067.8,2067.5,7.734]
[1772097637870,16.65201469,2067.8,2067.4,24.56782713]
[1772097638376,16.64593587,2067.6,2067.1,8.662]
[1772097638670,16.64593587,2067.6,2067.2,0.49840099]
[1772097638870,16.64593587,2067.6,2067.1,24.56982713]
[1772097639170,16.64593587,2067.6,2067.2,0.49852517]
[1772097639372,16.64593587,2067.6,2067.3,0.49852517]
[1772097639573,16.64593587,2067.6,2067.1,24.56982713]
[1772097639869,16.64593587,2067.6,2067.2,0.49853854]
[1772097640069,16.64593587,2067.6,2067.3,0.49853854]
[1772097640270,16.64593587,2067.6,2067.1,24.56982713]
[1772097640469,16.64593587,2067.6,2067.2,0.49867509]
[1772097640770,16.64593587,2067.6,2067.3,0.49867509]
[1772097640970,16.64593587,2067.6,2067.2,15.90782713]
[1772097641166,16.64593587,2067.6,2067.3,0.4987583]
[1772097641470,16.64593587,2067.6,2067.2,15.90782713]
[1772097641672,16.64593587,2067.6,2067.3,0.49884078]
[1772097641972,16.64593587,2067.6,2067.2,15.90782713]
[1772097642172,16.64593587,2067.6,2067.3,0.49887508]
[1772097642375,16.64593587,2067.6,2067.2,15.90782713]
[1772097642673,16.64593587,2067.6,2067.3,0.49933415]
[1772097642865,16.64593587,2067.6,2067.2,15.90782713]
[1772097643067,16.64593587,2067.6,2067.3,0.4993505]
[1772097643270,16.64593587,2067.6,2067.4,0.49948477]
[1772097643471,16.64593587,2067.6,2067.3,15.90782713]
[1772097643673,16.64593587,2067.6,2067.4,0.49948498]
[1772097643871,16.64593587,2067.6,2067.2,15.90782713]
[1772097644072,16.64593587,2067.6,2067.3,0.49948478]
[1772097644272,16.64593587,2067.6,2067.4,0.49948478]
[1772097644467,16.64593587,2067.6,2067.2,15.90782713]
[1772097644774,16.64593587,2067.6,2067.3,0.49983043]
[1772097644973,16.64593587,2067.6,2067.4,0.49983043]
[1772097645174,16.64593587,2067.6,2067.2,15.90782713]
[1772097645374,16.64593587,2067.6,2067.3,0.49993465]
[1772097645677,16.64593587,2067.6,2067.4,0.49993465]
[1772097645975,16.64593587,2067.6,2067.1,24.56982713]
[1772097646175,16.64593587,2067.6,2067.2,16.40776168]
[1772097646376,16.64593587,2067.6,2067.3,0.49993455]
[1772097646579,16.64593587,2067.6,2067.4,0.49993455]
[1772097646874,16.64593587,2067.6,2067.2,15.90782713]
[1772097647074,16.64593587,2067.6,2067.3,16.40757074]
[1772097647274,16.64593587,2067.6,2067.4,0.49974361]
[1772097647470,23.28516479,2067.5,2067.2,15.90782713]
[1772097647671,16.64593587,2067.5,2067.3,0.49983174]
[1772097647871,16.64593587,2067.5,2067.4,0.49983174]
[1772097648078,23.28516528,2067.5,2067.4,0.49983174]
[1772097648374,16.65201469,2067.8,2067.4,16.40765887]
[1772097648576,22.29914404,2067.7,2067.5,0.49983174]
[1772097648774,22.29914404,2067.7,2067.4,15.90782713]
[1772097648975,22.29914404,2067.7,2067.5,0.49977787]
[1772097649271,22.29914404,2067.7,2067.4,15.90782713]
[1772097649478,22.29914404,2067.7,2067.5,0.49981928]
[1772097649775,22.29914404,2067.7,2067.4,15.90782713]
[1772097649977,16.64593587,2067.7,2067.5,0.49979989]
[1772097650278,16.64593587,2067.7,2067.4,15.90782713]
[1772097650480,16.64593587,2067.7,2067.5,0.49981053]
[1772097650780,16.64593587,2067.7,2067.4,15.90782713]
[1772097650982,22.29914404,2067.7,2067.4,15.50564234]
[1772097655773,16.64593587,2067.6,2067.3,24.64782713]
[1772097656776,16.28263906,2067.7,2067.4,15.3775746]
[1772097656978,21.93584723,2067.7,2067.4,15.3775746]
[1772097657576,5.65320817,2067.7,2067.4,15.3775746]
[1772097658173,21.93584723,2067.7,2067.4,15.3775746]
[1772097659074,16.28263906,2067.7,2067.4,15.3775746]
[1772097660278,6.4824209,2067.6,2067.4,15.3775746]
[1772097660474,16.28263906,2067.4,2067.1,15.3775746]
[1772097660670,16.28263906,2067.4,2066.7,0.24762429]
[1772097660671,16.28263906,2067.2,2066.8,8.832]
[1772097660878,16.28263906,2067.0,2066.8,8.833]
[1772097661179,16.28263906,2067.1,2066.8,24.2125746]
[1772097661382,5.65320817,2067.1,2066.9,15.3775746]
[1772097661772,0.00607882,2067.8,2066.9,15.3775746]
[1772097661977,16.28263906,2068.2,2067.4,15.3775746]
[1772097662278,16.28263906,2067.9,2067.6,15.3775746]
[1772097662479,19.32977457,2067.9,2067.7,8.841]
[1772097662673,3.04713551,2067.9,2067.7,24.2185746]
[1772097662870,1.1569408,2067.9,2067.7,24.2185746]
[1772097663073,1.16094046,2067.9,2067.7,24.2185746]
[1772097665477,1.16094046,2067.9,2067.8,15.3775746]
[1772097665682,16.28263906,2068.4,2067.8,15.3775746]
[1772097665882,22.82571552,2068.3,2068.0,15.3775746]
[1772097666080,6.54307646,2068.2,2068.0,24.2455746]
[1772097666384,16.28263906,2068.3,2068.0,24.2455746]
[1772097666573,16.28657172,2068.3,2068.0,24.2455746]
[1772097666977,0.00393266,2068.3,2068.1,15.3775746]
[1772097669082,16.28657172,2068.3,2068.0,24.2455746]
[1772097669381,0.00393266,2068.3,2068.1,15.3775746]
[1772097672486,16.28657172,2068.3,2068.0,24.2455746]
[1772097672884,0.00393266,2068.3,2068.1,15.3775746]
[1772097673188,0.00393266,2068.3,2068.1,23.3955746]
[1772097673482,16.28263906,2068.2,2068.1,8.7511903]
[1772097673686,16.28263906,2068.2,2068.1,7.03480535]
[1772097673987,16.28263906,2068.2,2068.0,8.925]
[1772097674187,16.28657172,2068.3,2068.0,24.3025746]
[1772097674387,16.28657172,2068.3,2067.4,2.307]
[1772097674388,16.28657172,2068.3,2067.8,24.3065746]
[1772097674584,16.28657172,2068.3,2067.4,2.307]
[1772097674785,16.28263906,2068.1,2067.4,17.6845746]
[1772097674986,16.28263906,2067.9,2067.5,6.337]
[1772097675185,16.28263906,2068.1,2067.6,15.3775746]
[1772097675386,31.68663906,2068.1,2067.6,15.3775746]
[1772097675690,16.28263906,2068.1,2067.6,15.3775746]
[1772097675896,31.69263906,2068.1,2067.8,15.3775746]
[1772097676295,16.28263906,2068.0,2067.7,24.3125746]
[1772097676996,16.28263906,2068.0,2067.7,8.935]
[1772097677897,16.28263906,2068.1,2067.8,15.3775746]
[1772097678297,31.72563906,2068.1,2067.8,15.3775746]
[1772097678494,16.28263906,2068.0,2067.7,24.3125746]
[1772097678895,16.28657172,2068.3,2067.8,15.3775746]
[1772097679094,16.28657172,2068.3,2067.9,8.958]
[1772097679589,16.28657172,2068.3,2067.9,24.3355746]
[1772097679788,16.28263906,2068.2,2067.9,24.3355746]
[1772097680892,16.28263906,2068.2,2067.6,15.3775746]
[1772097681097,16.28263906,2068.2,2067.7,8.973]
[1772097681289,16.28263906,2068.0,2067.6,8.974]
[1772097681491,16.28263906,2068.0,2067.5,15.3775746]
[1772097681697,16.28263906,2068.0,2067.6,24.3525746]
[1772097682501,16.28263906,2068.0,2067.7,15.3775746]
[1772097684101,16.28263906,2068.0,2067.6,24.3525746]
[1772097685098,16.28263906,2068.0,2067.6,9.003]
[1772097685402,16.28263906,2068.0,2067.7,15.3775746]
[1772097686293,31.85863906,2068.0,2067.7,15.3775746]
[1772097688707,15.14963281,2067.9,2067.6,23.9615702]
[1772097689202,15.14963281,2067.9,2067.6,9.003]
[1772097689404,15.14963281,2067.9,2067.6,23.9615702]
[1772097691302,30.72563281,2068.0,2067.7,14.9585702]
[1772097691507,6.45009839,2067.9,2067.7,14.9585702]
[1772097691707,30.72563281,2068.0,2067.7,14.9585702]
[1772097691908,6.4500926,2067.9,2067.7,14.9585702]
[1772097692110,30.72563281,2068.0,2067.7,14.9585702]
[1772097692306,6.44406749,2067.9,2067.7,14.9585702]
[1772097692606,15.14963281,2068.0,2067.7,14.9585702]
[1772097692806,6.44384053,2067.9,2067.7,14.9585702]
[1772097693109,15.14963281,2068.0,2067.7,14.9585702]
[1772097693303,6.44384075,2067.9,2067.7,14.9585702]
[1772097693503,15.14963281,2068.0,2067.7,14.9585702]
[1772097693704,6.44365392,2067.9,2067.7,14.9585702]
[1772097694003,19.20154693,2068.3,2067.8,9.074]
[1772097694206,6.44325482,2068.2,2067.9,14.9585702]
[1772097694403,6.44325482,2068.1,2067.9,14.9585702]
[1772097694607,14.89142011,2068.3,2067.9,14.9585702]
[1772097695008,14.89142011,2068.3,2068.0,24.0405702]
[1772097695605,14.89519849,2068.3,2068.0,24.0405702]
[1772097701407,18.09327129,2068.5,2068.1,15.42581669]
[1772097701614,14.15407935,2068.8,2068.3,15.42581669]
[1772097702310,30.08807935,2068.8,2068.5,15.42581669]
[1772097702513,30.09182102,2068.8,2068.5,15.4292833]
[1772097702708,14.15407935,2068.7,2068.1,15.42581669]
[1772097702915,14.15407935,2068.7,2068.1,24.56481669]
[1772097703109,14.15407935,2068.7,2068.2,9.141]
[1772097703612,14.15407935,2068.7,2068.2,9.145]
[1772097703813,14.15407935,2068.7,2068.2,9.14884487]
[1772097704013,15.983,2068.6,2068.2,0.00384487]
[1772097704309,14.15407935,2068.5,2068.2,15.42966156]
[1772097704910,14.15407935,2068.5,2068.2,0.00384487]
[1772097708713,0.00374167,2068.8,2068.2,15.42966156]
[1772097709015,6.47375236,2068.7,2068.4,15.42581669]
[1772097709215,6.47375236,2068.6,2068.4,15.42581669]
[1772097709517,30.21682102,2068.8,2068.4,15.42581669]
[1772097709718,6.47217964,2068.7,2068.4,15.42581669]
[1772097709919,6.47217964,2068.6,2068.4,15.42581669]
[1772097710118,30.21682102,2068.8,2068.4,15.42581669]
[1772097710314,6.45409441,2068.7,2068.4,15.42581669]
[1772097710515,6.45409441,2068.6,2068.4,15.42581669]
[1772097710715,30.21682102,2068.8,2068.4,15.42581669]
[1772097710920,6.45309412,2068.7,2068.4,15.42581669]
[1772097711118,6.45309412,2068.6,2068.4,15.42581669]
[1772097711321,14.15407935,2068.7,2068.4,15.42581669]
[1772097712516,14.15407935,2068.7,2068.3,24.60681669]
[1772097712716,14.15407935,2068.7,2068.4,15.42581669]
[1772097716824,29.615864,2068.8,2068.4,15.42581669]
[1772097717024,6.45027064,2068.7,2068.4,15.42581669]
[1772097717219,29.615864,2068.8,2068.4,15.42581669]
[1772097717418,6.45011447,2068.7,2068.4,15.42581669]
[1772097717622,13.556864,2068.8,2068.4,15.42581669]
[1772097717815,6.45029124,2068.7,2068.4,15.42581669]
[1772097718014,0.00374167,2068.8,2068.4,15.42581669]
[1772097718226,6.45029124,2068.7,2068.4,15.42581669]
[1772097718522,0.00374167,2068.8,2068.4,15.42581669]
[1772097718724,6.4504672,2068.7,2068.4,15.42581669]
[1772097719023,13.556864,2068.8,2068.4,15.42581669]
[1772097719220,6.4504672,2068.7,2068.4,15.42581669]
[1772097719420,13.556864,2068.8,2068.4,15.42581669]
[1772097719620,6.45081558,2068.7,2068.4,15.42581669]
[1772097719820,13.556864,2068.8,2068.4,15.42581669]
[1772097720019,6.45081558,2068.7,2068.4,15.42581669]
[1772097720222,13.556864,2068.8,2068.4,15.42581669]
[1772097720521,6.45195291,2068.7,2068.4,15.42581669]
[1772097720721,13.556864,2068.8,2068.4,15.42581669]
[1772097720923,6.43562895,2068.7,2068.4,15.42581669]
[1772097721123,13.556864,2068.8,2068.4,15.42581669]
[1772097721322,6.43546695,2068.7,2068.4,15.42581669]
[1772097721522,13.556864,2068.8,2068.4,15.42581669]
[1772097721723,6.43688141,2068.7,2068.4,15.42581669]
[1772097722023,13.556864,2068.8,2068.4,15.42581669]
[1772097722226,19.99000374,2068.7,2068.4,15.42581669]
[1772097722425,13.55312233,2068.7,2068.3,9.181]
[1772097722625,13.55312233,2068.5,2068.3,9.181]
[1772097722826,13.55312233,2068.5,2068.3,7.29080535]
[1772097723027,13.55312233,2068.7,2068.4,14.08930684]
[1772097723226,6.43861195,2068.6,2068.4,14.08930684]
[1772097723529,13.55312233,2068.7,2068.4,14.08930684]
[1772097723728,6.44029693,2068.6,2068.4,14.08930684]
[1772097724027,13.55312233,2068.7,2068.4,14.08930684]
[1772097724229,6.44008112,2068.6,2068.4,14.08930684]
[1772097724425,13.55312233,2068.7,2068.4,14.08930684]
[1772097724727,6.44124222,2068.6,2068.4,14.08930684]
[1772097725028,13.55312233,2068.7,2068.4,14.08930684]
[1772097725227,6.44126289,2068.6,2068.4,14.08930684]
[1772097725428,13.55312233,2068.7,2068.4,14.08930684]
[1772097725624,6.44217447,2068.6,2068.4,14.08930684]
[1772097725825,13.55312233,2068.7,2068.3,21.38011219]
[1772097726026,6.44217469,2068.6,2068.3,21.38011219]
[1772097726227,13.55312233,2068.7,2068.3,21.38011219]
[1772097726525,19.99640141,2068.6,2068.3,21.38011219]
[1772097726725,13.55312233,2068.6,2068.3,21.38011219]
[1772097726923,13.55312233,2068.4,2067.5,14.08930684]
[1772097727122,24.17540183,2068.5,2067.5,14.08930684]
[1772097727123,13.55312233,2068.2,2067.6,14.08930684]
[1772097727326,13.55312233,2068.0,2067.6,14.08930684]
[1772097727726,13.55312233,2068.0,2067.7,9.314]
[1772097727923,13.55312233,2068.0,2067.7,0.00447268]
[1772097728130,13.55312233,2068.0,2067.7,9.31947268]
[1772097728633,13.55312233,2068.0,2067.7,0.00447268]
[1772097729329,13.55312233,2068.0,2067.7,14.09377952]
[1772097729530,13.55312233,2068.2,2067.7,14.09377952]
[1772097729732,6.44122356,2068.1,2067.7,14.09377952]
[1772097729927,13.55312233,2068.2,2067.7,14.09377952]
[1772097730428,19.99434296,2068.1,2067.7,14.09377952]
[1772097730730,13.55312233,2068.1,2067.7,14.09377952]
[1772097732932,13.55312233,2068.1,2067.7,0.00447268]
[1772097733732,13.55312233,2068.1,2067.6,23.32798175]
[1772097733931,13.55312233,2067.9,2067.5,14.08930684]
[1772097734131,13.55312233,2067.5,2067.2,9.357]
[1772097734333,13.55312233,2067.7,2067.3,14.08930684]
[1772097734727,40.8,2067.7,2067.3,14.08930684]
[1772097734932,54.35312233,2067.7,2067.3,14.09429776]
[1772097735331,13.55312233,2067.7,2067.3,14.09429776]
[1772097736037,13.55312233,2067.7,2067.3,23.46429776]
[1772097736232,13.55312233,2067.7,2067.3,14.09429776]
[1772097736432,13.55312233,2067.7,2067.3,23.46629776]
[1772097737137,13.55312233,2067.7,2067.4,14.08930684]
[1772097737739,13.55312233,2067.7,2067.3,23.47329776]
[1772097738943,13.55312233,2068.2,2067.7,14.08930684]
[1772097739137,13.55312233,2068.2,2067.9,14.08930684]
[1772097740239,13.55312233,2068.2,2067.8,23.47930684]
[1772097742642,6.61453263,2068.1,2067.8,23.47930684]
[1772097742939,13.55312233,2068.1,2067.8,23.47930684]
[1772097743741,13.55312233,2068.1,2067.8,9.39]
[1772097744138,13.55312233,2068.1,2067.7,9.426]
[1772097744345,13.55312233,2068.1,2067.7,23.51530684]
[1772097746143,6.61631217,2068.0,2067.7,23.51530684]
[1772097746343,13.55312233,2068.1,2067.7,23.51530684]
[1772097746542,20.13126944,2068.0,2067.7,23.51530684]
[1772097746844,20.13145005,2067.9,2067.5,13.22081329]
[1772097747145,1.17886325,2068.2,2067.7,13.22081329]
[1772097747146,13.51468495,2068.2,2067.7,13.22081329]
[1772097747335,6.61712329,2068.1,2067.7,13.22081329]
[1772097747540,6.61712329,2068.0,2067.7,13.22081329]
[1772097747740,13.51468495,2068.1,2067.7,13.22081329]
[1772097747944,6.61763612,2068.0,2067.7,13.22081329]
[1772097748140,13.51468495,2068.1,2067.7,13.22081329]
[1772097748341,6.61798343,2068.0,2067.7,13.22081329]
[1772097748541,13.51468495,2068.1,2067.7,13.22081329]
[1772097748837,13.51468495,2067.9,2067.6,22.66581329]
[1772097749641,13.51468495,2067.9,2067.6,9.29448844]
[1772097750042,13.51468495,2068.0,2067.6,13.22081329]
[1772097750442,6.65015611,2067.9,2067.6,13.22081329]
[1772097750643,13.51468495,2068.0,2067.6,13.22081329]
[1772097750942,20.16484099,2067.9,2067.6,13.22081329]
[1772097751142,13.51468495,2067.9,2067.6,13.22081329]
[1772097752144,13.51468495,2068.1,2067.6,13.22081329]
[1772097752342,13.51468495,2068.4,2067.8,13.22081329]
[1772097752541,13.51468495,2068.4,2067.9,22.70181329]
[1772097752745,13.51468495,2068.4,2067.9,22.70381329]
[1772097753144,13.51468495,2068.4,2068.0,13.22081329]
[1772097754347,13.51468495,2068.4,2067.9,22.70381329]
[1772097754643,13.51468495,2068.2,2067.7,13.22081329]
[1772097757543,13.51468495,2068.2,2067.6,9.497]
[1772097757748,13.51468495,2068.2,2067.6,23.07708096]
[1772097758251,14.6935482,2068.2,2067.6,23.07708096]
[1772097758440,14.6935482,2068.2,2067.3,0.00499092]
[1772097758441,13.14668269,2067.9,2067.4,23.10008096]
[1772097758950,13.14668269,2067.9,2067.5,13.58008096]
[1772097762556,17.20189272,2068.1,2067.5,13.58008096]
[1772097762754,13.14668269,2068.0,2067.5,13.58008096]
[1772097764462,19.85091802,2067.9,2067.5,13.58008096]
[1772097764663,6.70423533,2067.8,2067.5,13.58008096]
[1772097764855,6.70423533,2067.7,2067.5,13.58008096]
[1772097765161,13.14668269,2067.9,2067.5,13.58008096]
[1772097765358,6.70477639,2067.8,2067.5,13.58008096]
[1772097765659,6.70477639,2067.7,2067.5,13.58008096]
[1772097765859,17.20189272,2068.0,2067.5,13.58008096]
[1772097766054,19.89865577,2067.9,2067.5,13.58008096]
[1772097766255,6.75197308,2067.8,2067.5,13.58008096]
[1772097766452,19.89865577,2067.8,2067.4,9.52]
[1772097766652,13.14668269,2067.6,2067.4,9.44128024]
[1772097768564,13.14668269,2067.7,2067.4,23.0213612]
[1772097768858,6.75396732,2067.6,2067.4,9.44128024]
[1772097769064,13.14668269,2067.6,2067.4,9.44128024]
[1772097769761,4.05521003,2067.9,2067.4,9.44128024]